[Event "*** Titled Tuesday Blitz"]
[Site "Chess.com"]
[Date "2020.05.26"]
[Round "8"]
[White "grzechu96"]
[Black "angryhorse9"]
[Result "1-0"]
[WhiteElo "2619"]
[BlackElo "2467"]
[TimeControl "180+1"]
[EndTime "11:38:10 PDT"]
[Termination "grzechu96 won by resignation"]

1. e4 {[%clk 0:03:00.9]} 1... c5 {[%clk 0:02:59.2]} 2. Nf3 {[%clk 0:03:00.9]}
2... Nc6 {[%clk 0:02:58.9]} 3. Bb5 {[%clk 0:02:59.5]} 3... g6 {[%clk 0:02:59]}
4. Bxc6 {[%clk 0:02:59.5]} 4... bxc6 {[%clk 0:02:59.9]} 5. d4 {[%clk 0:02:58.5]}
5... cxd4 {[%clk 0:02:59.7]} 6. Qxd4 {[%clk 0:02:58.2]} 6... Nf6 {[%clk
0:03:00.2]} 7. e5 {[%clk 0:02:58.7]} 7... Nd5 {[%clk 0:02:59.5]} 8. c4 {[%clk
0:02:58.2]} 8... Nc7 {[%clk 0:02:49.2]} 9. O-O {[%clk 0:02:57.7]} 9... Bg7
{[%clk 0:02:48.8]} 10. Qh4 {[%clk 0:02:53.5]} 10... Ne6 {[%clk 0:02:33.5]} 11.
Nc3 {[%clk 0:02:53.4]} 11... O-O {[%clk 0:02:33]} 12. Bh6 {[%clk 0:02:52.2]}
12... f6 {[%clk 0:02:31]} 13. Bxg7 {[%clk 0:02:50.9]} 13... Kxg7 {[%clk
0:02:31.6]} 14. exf6+ {[%clk 0:02:51.1]} 14... exf6 {[%clk 0:02:32.5]} 15. Rad1
{[%clk 0:02:50.5]} 15... Qb6 {[%clk 0:02:27.6]} 16. b3 {[%clk 0:02:46.7]} 16...
a5 {[%clk 0:02:21.7]} 17. Qg3 {[%clk 0:02:36]} 17... Rf7 {[%clk 0:02:15.3]} 18.
Rd2 {[%clk 0:02:29.1]} 18... Bb7 {[%clk 0:02:14.6]} 19. Na4 {[%clk 0:02:27.5]}
19... Qb4 {[%clk 0:02:08.4]} 20. Qd6 {[%clk 0:02:27.8]} 20... Re8 {[%clk
0:02:02]} 21. Rfd1 {[%clk 0:02:24.7]} 21... Nf8 {[%clk 0:01:57.2]} 22. Qxb4
{[%clk 0:02:20.8]} 22... axb4 {[%clk 0:01:58]} 23. Nc5 {[%clk 0:02:21.5]} 23...
Bc8 {[%clk 0:01:57.9]} 24. Nd3 {[%clk 0:02:05.8]} 24... Bb7 {[%clk 0:01:57.5]}
25. Nxb4 {[%clk 0:02:05.6]} 25... c5 {[%clk 0:01:56.4]} 26. Nd5 {[%clk
0:02:05.8]} 26... Ne6 {[%clk 0:01:53.3]} 27. Kf1 {[%clk 0:01:56]} 27... Ra8
{[%clk 0:01:51.8]} 28. Nb6 {[%clk 0:01:50.3]} 28... Bxf3 {[%clk 0:01:43.6]} 29.
gxf3 {[%clk 0:01:49.5]} 29... Ra6 {[%clk 0:01:38.5]} 30. Nxd7 {[%clk 0:01:49.3]}
30... Rc6 {[%clk 0:01:30.1]} 31. Rd6 {[%clk 0:01:46.4]} 31... Nd4 {[%clk
0:01:25.9]} 32. R1xd4 {[%clk 0:01:45]} 1-0

[Event "*** Titled Tuesday Blitz"]
[Site "Chess.com"]
[Date "2020.05.26"]
[Round "8"]
[White "Semen_Khanin"]
[Black "Infernal_XaM"]
[Result "0-1"]
[WhiteElo "2709"]
[BlackElo "2839"]
[TimeControl "180+1"]
[EndTime "11:38:14 PDT"]
[Termination "Infernal_XaM won by resignation"]

1. e4 {[%clk 0:03:00.9]} 1... e5 {[%clk 0:03:00.4]} 2. Nf3 {[%clk 0:03:00.4]}
2... Nf6 {[%clk 0:03:01]} 3. Nxe5 {[%clk 0:02:56.6]} 3... Nxe4 {[%clk
0:03:01.3]} 4. Qe2 {[%clk 0:02:54.7]} 4... Qe7 {[%clk 0:03:01.9]} 5. Qxe4 {[%clk
0:02:53.6]} 5... d6 {[%clk 0:03:02.4]} 6. d4 {[%clk 0:02:52.5]} 6... dxe5 {[%clk
0:03:02.8]} 7. dxe5 {[%clk 0:02:52.4]} 7... Nc6 {[%clk 0:03:03.2]} 8. Nc3 {[%clk
0:02:52.6]} 8... Qxe5 {[%clk 0:03:02.7]} 9. Qxe5+ {[%clk 0:02:50.8]} 9... Nxe5
{[%clk 0:03:02.6]} 10. Bf4 {[%clk 0:02:49.7]} 10... Bd6 {[%clk 0:03:01.7]} 11.
Bg3 {[%clk 0:02:46.5]} 11... f6 {[%clk 0:03:01.3]} 12. Nb5 {[%clk 0:02:45.2]}
12... Bb4+ {[%clk 0:03:01.7]} 13. c3 {[%clk 0:02:43.9]} 13... Ba5 {[%clk
0:03:02.2]} 14. O-O-O {[%clk 0:02:32.6]} 14... Be6 {[%clk 0:02:56.9]} 15. Nd4
{[%clk 0:02:12.8]} 15... Bxa2 {[%clk 0:02:47.2]} 16. Re1 {[%clk 0:02:07.3]}
16... O-O-O {[%clk 0:02:30.6]} 17. Bxe5 {[%clk 0:02:01.4]} 17... Rhe8 {[%clk
0:02:10.3]} 18. f4 {[%clk 0:01:42.5]} 18... fxe5 {[%clk 0:01:51.3]} 19. fxe5
{[%clk 0:01:42.7]} 19... Rxd4 {[%clk 0:01:47.4]} 20. Bb5 {[%clk 0:01:25.6]}
20... c6 {[%clk 0:01:44.7]} 21. cxd4 {[%clk 0:00:58.4]} 21... Bxe1 {[%clk
0:01:43.7]} 22. Rxe1 {[%clk 0:00:59]} 22... cxb5 {[%clk 0:01:43.1]} 23. Kd2
{[%clk 0:00:57.6]} 23... Bd5 {[%clk 0:01:41]} 24. Ke3 {[%clk 0:00:54.9]} 24...
Kd7 {[%clk 0:01:40.8]} 0-1

[Event "*** Titled Tuesday Blitz"]
[Site "Chess.com"]
[Date "2020.05.26"]
[Round "8"]
[White "keepitcool9499"]
[Black "kleinebeer98"]
[Result "1/2-1/2"]
[WhiteElo "2464"]
[BlackElo "2667"]
[TimeControl "180+1"]
[EndTime "11:38:15 PDT"]
[Termination "Game drawn by agreement"]

1. d4 {[%clk 0:03:00.9]} 1... d5 {[%clk 0:02:59.8]} 2. c4 {[%clk 0:03:01.1]}
2... Nc6 {[%clk 0:03:00.1]} 3. e3 {[%clk 0:02:59.7]} 3... e5 {[%clk 0:02:58.6]}
4. dxe5 {[%clk 0:02:53]} 4... d4 {[%clk 0:02:56.2]} 5. a3 {[%clk 0:02:51.7]}
5... Bf5 {[%clk 0:02:48.6]} 6. Nf3 {[%clk 0:02:47.9]} 6... dxe3 {[%clk 0:02:05]}
7. Qxd8+ {[%clk 0:02:44.4]} 7... Rxd8 {[%clk 0:02:05.9]} 8. Bxe3 {[%clk
0:02:44.1]} 8... Nge7 {[%clk 0:02:06.8]} 9. Nc3 {[%clk 0:02:40.5]} 9... Ng6
{[%clk 0:02:00.9]} 10. Nb5 {[%clk 0:02:31.4]} 10... Kd7 {[%clk 0:01:49.2]} 11.
O-O-O+ {[%clk 0:02:20.5]} 11... Kc8 {[%clk 0:01:49.4]} 12. Rxd8+ {[%clk
0:02:18.2]} 12... Kxd8 {[%clk 0:01:50.3]} 13. Nbd4 {[%clk 0:02:08.6]} 13... Bd7
{[%clk 0:01:35.4]} 14. e6 {[%clk 0:01:48.8]} 14... fxe6 {[%clk 0:01:28]} 15.
Nxc6+ {[%clk 0:01:43.1]} 15... Bxc6 {[%clk 0:01:28.9]} 16. Nd4 {[%clk
0:01:42.7]} 16... Bd7 {[%clk 0:01:25.4]} 17. Be2 {[%clk 0:01:41.8]} 17... c6
{[%clk 0:01:23.6]} 18. Rd1 {[%clk 0:01:40.4]} 18... Kc7 {[%clk 0:01:20.5]} 19.
Bg4 {[%clk 0:01:33.5]} 19... Bc5 {[%clk 0:01:07.6]} 20. Nxe6+ {[%clk 0:01:10.5]}
20... Bxe6 {[%clk 0:01:07]} 1/2-1/2

[Event "*** Titled Tuesday Blitz"]
[Site "Chess.com"]
[Date "2020.05.26"]
[Round "8"]
[White "Machidon"]
[Black "Gentle_Emperor"]
[Result "1-0"]
[WhiteElo "2502"]
[BlackElo "2315"]
[TimeControl "180+1"]
[EndTime "11:38:22 PDT"]
[Termination "Machidon won by checkmate"]

1. d4 {[%clk 0:03:00.9]} 1... Nf6 {[%clk 0:02:55.8]} 2. Nf3 {[%clk 0:02:59.6]}
2... e6 {[%clk 0:02:53.5]} 3. c4 {[%clk 0:02:58.5]} 3... d5 {[%clk 0:02:52.8]}
4. Nc3 {[%clk 0:02:58.3]} 4... c6 {[%clk 0:02:49.2]} 5. e3 {[%clk 0:02:56.8]}
5... Bd6 {[%clk 0:02:42.4]} 6. Qc2 {[%clk 0:02:56.5]} 6... Nbd7 {[%clk
0:02:41.1]} 7. b3 {[%clk 0:02:56.8]} 7... O-O {[%clk 0:02:34.2]} 8. Be2 {[%clk
0:02:56.5]} 8... b6 {[%clk 0:02:27.1]} 9. O-O {[%clk 0:02:55.6]} 9... Bb7 {[%clk
0:02:26.6]} 10. e4 {[%clk 0:02:55.9]} 10... dxe4 {[%clk 0:02:25.4]} 11. Nxe4
{[%clk 0:02:56.8]} 11... Nxe4 {[%clk 0:02:25.5]} 12. Qxe4 {[%clk 0:02:57.7]}
12... Nf6 {[%clk 0:02:23.9]} 13. Qh4 {[%clk 0:02:57.8]} 13... h6 {[%clk
0:02:21.5]} 14. Rd1 {[%clk 0:02:37.6]} 14... Qe7 {[%clk 0:02:19.6]} 15. c5
{[%clk 0:02:07.2]} 15... bxc5 {[%clk 0:02:17.3]} 16. Ba3 {[%clk 0:02:03.8]}
16... cxd4 {[%clk 0:02:12.3]} 17. Bxd6 {[%clk 0:02:04.7]} 17... Qxd6 {[%clk
0:02:12.9]} 18. Rxd4 {[%clk 0:02:04.8]} 18... Qe7 {[%clk 0:02:13.2]} 19. Rad1
{[%clk 0:02:03.6]} 19... Nd5 {[%clk 0:02:11.1]} 20. Qxe7 {[%clk 0:02:02.4]}
20... Nxe7 {[%clk 0:02:10.5]} 21. Rd7 {[%clk 0:02:03]} 21... Nd5 {[%clk
0:02:04.8]} 22. Rxb7 {[%clk 0:02:01.5]} 22... Nc3 {[%clk 0:02:05]} 23. Re1
{[%clk 0:02:01.2]} 23... Rfd8 {[%clk 0:02:04.8]} 24. Bc4 {[%clk 0:01:53.4]}
24... a5 {[%clk 0:02:00.9]} 25. Ne5 {[%clk 0:01:50.7]} 25... a4 {[%clk
0:01:52.7]} 26. Nxf7 {[%clk 0:01:45.9]} 26... Rdb8 {[%clk 0:01:49.8]} 27. Rxb8+
{[%clk 0:01:43.5]} 27... Rxb8 {[%clk 0:01:50.7]} 28. Ne5 {[%clk 0:01:42.4]}
28... axb3 {[%clk 0:01:49.3]} 29. Bxe6+ {[%clk 0:01:40.3]} 29... Kh7 {[%clk
0:01:49.2]} 30. axb3 {[%clk 0:01:38.3]} 30... Rd8 {[%clk 0:01:40.4]} 31. h4
{[%clk 0:01:30.9]} 31... Rd2 {[%clk 0:01:36.9]} 32. Bf5+ {[%clk 0:01:24.8]}
32... Kh8 {[%clk 0:01:35.1]} 33. Ng6+ {[%clk 0:01:21]} 33... Kg8 {[%clk
0:01:33.7]} 34. Re8+ {[%clk 0:01:20.2]} 34... Kf7 {[%clk 0:01:32.9]} 35. Rf8#
{[%clk 0:01:20.5]} 1-0

[Event "*** Titled Tuesday Blitz"]
[Site "Chess.com"]
[Date "2020.05.26"]
[Round "8"]
[White "vanea_03"]
[Black "Malysch"]
[Result "1-0"]
[WhiteElo "2687"]
[BlackElo "2469"]
[TimeControl "180+1"]
[EndTime "11:38:23 PDT"]
[Termination "vanea_03 won by resignation"]

1. d4 {[%clk 0:03:00.9]} 1... Nf6 {[%clk 0:02:59.4]} 2. c4 {[%clk 0:03:01.5]}
2... g6 {[%clk 0:02:59.4]} 3. Nc3 {[%clk 0:02:59.9]} 3... d5 {[%clk 0:02:59.4]}
4. cxd5 {[%clk 0:02:59.4]} 4... Nxd5 {[%clk 0:02:59.5]} 5. Na4 {[%clk
0:03:00.1]} 5... Bg7 {[%clk 0:02:56.6]} 6. e4 {[%clk 0:03:00.6]} 6... Nb6 {[%clk
0:02:53.8]} 7. Nf3 {[%clk 0:02:58.9]} 7... O-O {[%clk 0:02:52.2]} 8. Be3 {[%clk
0:02:57.8]} 8... Nxa4 {[%clk 0:02:29.2]} 9. Qxa4 {[%clk 0:02:57.2]} 9... c5
{[%clk 0:02:29]} 10. Rd1 {[%clk 0:02:55.5]} 10... Bd7 {[%clk 0:02:06.1]} 11. Qa3
{[%clk 0:02:50]} 11... Qb6 {[%clk 0:01:50]} 12. Be2 {[%clk 0:02:41.2]} 12... Rd8
{[%clk 0:01:43.7]} 13. O-O {[%clk 0:02:33.6]} 13... Nc6 {[%clk 0:01:23.5]} 14.
dxc5 {[%clk 0:02:24.3]} 14... Bxb2 {[%clk 0:00:51.1]} 15. cxb6 {[%clk 0:02:13]}
15... Bxa3 {[%clk 0:00:50.5]} 16. bxa7 {[%clk 0:02:13.9]} 16... Nxa7 {[%clk
0:00:41.6]} 17. Bb6 {[%clk 0:02:12.2]} 17... Bb5 {[%clk 0:00:23.1]} 18. Rxd8+
{[%clk 0:01:58.9]} 18... Rxd8 {[%clk 0:00:24]} 19. Bxb5 {[%clk 0:01:58.9]} 1-0

[Event "*** Titled Tuesday Blitz"]
[Site "Chess.com"]
[Date "2020.05.26"]
[Round "8"]
[White "Sychev_Klementy"]
[Black "chessdjw"]
[Result "1-0"]
[WhiteElo "2869"]
[BlackElo "2713"]
[TimeControl "180+1"]
[EndTime "11:38:25 PDT"]
[Termination "Sychev_Klementy won by resignation"]

1. e4 {[%clk 0:03:00.9]} 1... c5 {[%clk 0:02:59.7]} 2. Nf3 {[%clk 0:03:00.1]}
2... d6 {[%clk 0:02:59.3]} 3. d4 {[%clk 0:03:00]} 3... cxd4 {[%clk 0:02:59.2]}
4. Nxd4 {[%clk 0:03:00.6]} 4... Nf6 {[%clk 0:02:59.3]} 5. Nc3 {[%clk 0:03:01.1]}
5... a6 {[%clk 0:02:58.2]} 6. Bg5 {[%clk 0:03:00.7]} 6... e6 {[%clk 0:02:57.4]}
7. f4 {[%clk 0:03:00.6]} 7... Qb6 {[%clk 0:02:56.1]} 8. Qd2 {[%clk 0:02:59.9]}
8... Qxb2 {[%clk 0:02:55.1]} 9. Rb1 {[%clk 0:02:59.7]} 9... Qa3 {[%clk
0:02:55.4]} 10. Be2 {[%clk 0:02:57.2]} 10... Nbd7 {[%clk 0:02:46.7]} 11. O-O
{[%clk 0:02:55.9]} 11... Be7 {[%clk 0:02:44.5]} 12. f5 {[%clk 0:02:55.8]} 12...
e5 {[%clk 0:02:31]} 13. Ne6 {[%clk 0:02:55]} 13... fxe6 {[%clk 0:02:19.7]} 14.
fxe6 {[%clk 0:02:55.9]} 14... Qc5+ {[%clk 0:02:09.4]} 15. Be3 {[%clk 0:02:30]}
15... Qc6 {[%clk 0:02:08.5]} 16. exd7+ {[%clk 0:02:18.1]} 16... Bxd7 {[%clk
0:02:09.4]} 17. Rb6 {[%clk 0:01:53.3]} 17... Qc7 {[%clk 0:02:09.3]} 18. Rxf6
{[%clk 0:01:48.1]} 18... gxf6 {[%clk 0:01:37.2]} 19. Nd5 {[%clk 0:01:44.4]}
19... Qb8 {[%clk 0:01:28.7]} 20. Bh5+ {[%clk 0:01:33.5]} 20... Kd8 {[%clk
0:01:28.2]} 21. Qa5 {[%clk 0:01:30]} 1-0

[Event "*** Titled Tuesday Blitz"]
[Site "Chess.com"]
[Date "2020.05.26"]
[Round "8"]
[White "hitaman"]
[Black "iwanyu"]
[Result "0-1"]
[WhiteElo "2625"]
[BlackElo "2794"]
[TimeControl "180+1"]
[EndTime "11:38:35 PDT"]
[Termination "iwanyu won by resignation"]

1. e4 {[%clk 0:02:55.2]} 1... e5 {[%clk 0:02:59.6]} 2. Nf3 {[%clk 0:02:53.4]}
2... Nc6 {[%clk 0:03:00.3]} 3. Bc4 {[%clk 0:02:50.2]} 3... Nf6 {[%clk 0:03:00]}
4. Ng5 {[%clk 0:02:50.1]} 4... d5 {[%clk 0:02:59.7]} 5. exd5 {[%clk 0:02:51]}
5... Na5 {[%clk 0:02:59.3]} 6. Bb5+ {[%clk 0:02:51.4]} 6... c6 {[%clk
0:02:59.9]} 7. dxc6 {[%clk 0:02:52.3]} 7... bxc6 {[%clk 0:03:00.8]} 8. Bd3
{[%clk 0:02:52.7]} 8... Nd5 {[%clk 0:02:50.1]} 9. Nf3 {[%clk 0:02:49.6]} 9...
Bd6 {[%clk 0:02:47.9]} 10. Nc3 {[%clk 0:02:49.6]} 10... O-O {[%clk 0:02:46.7]}
11. Be4 {[%clk 0:02:06.6]} 11... f5 {[%clk 0:02:34.6]} 12. Bxd5+ {[%clk
0:02:06.7]} 12... cxd5 {[%clk 0:02:34.7]} 13. d4 {[%clk 0:02:07.6]} 13... e4
{[%clk 0:02:29.6]} 14. Ne5 {[%clk 0:01:57]} 14... Ba6 {[%clk 0:02:25]} 15. Ne2
{[%clk 0:01:44.2]} 15... Rc8 {[%clk 0:01:59.4]} 16. c3 {[%clk 0:01:43]} 16...
Nc4 {[%clk 0:01:52.1]} 17. Nxc4 {[%clk 0:01:37.7]} 17... Bxc4 {[%clk 0:01:51.3]}
18. g3 {[%clk 0:01:36.9]} 18... Qf6 {[%clk 0:01:30.1]} 19. Bf4 {[%clk
0:01:29.2]} 19... Bxf4 {[%clk 0:01:23.6]} 20. gxf4 {[%clk 0:01:25.5]} 20... Qh4
{[%clk 0:01:22.6]} 21. Qd2 {[%clk 0:01:23.4]} 21... e3 {[%clk 0:01:22.3]} 22.
Qxe3 {[%clk 0:00:52.9]} 22... Rce8 {[%clk 0:01:20.8]} 23. Ng3 {[%clk 0:00:53.5]}
23... Qxf4 {[%clk 0:01:13.1]} 0-1

[Event "*** Titled Tuesday Blitz"]
[Site "Chess.com"]
[Date "2020.05.26"]
[Round "8"]
[White "ehrenfeld"]
[Black "iLuusions"]
[Result "1-0"]
[WhiteElo "2464"]
[BlackElo "2562"]
[TimeControl "180+1"]
[EndTime "11:38:35 PDT"]
[Termination "ehrenfeld won by resignation"]

1. e4 {[%clk 0:03:00.9]} 1... c5 {[%clk 0:02:56.7]} 2. d3 {[%clk 0:03:00.4]}
2... Nc6 {[%clk 0:02:56]} 3. f4 {[%clk 0:03:00.4]} 3... d6 {[%clk 0:02:56.1]} 4.
Nf3 {[%clk 0:03:00.2]} 4... g6 {[%clk 0:02:56.5]} 5. Be2 {[%clk 0:03:00.3]} 5...
Bg7 {[%clk 0:02:56.9]} 6. O-O {[%clk 0:03:00.7]} 6... Nf6 {[%clk 0:02:53.3]} 7.
Qe1 {[%clk 0:02:59.4]} 7... O-O {[%clk 0:02:53.4]} 8. Qh4 {[%clk 0:02:58.9]}
8... e6 {[%clk 0:02:20.5]} 9. c3 {[%clk 0:02:56.4]} 9... Nd7 {[%clk 0:02:11.2]}
10. Qh3 {[%clk 0:02:55]} 10... Re8 {[%clk 0:02:06.3]} 11. Na3 {[%clk 0:02:47.7]}
11... Rb8 {[%clk 0:02:00.7]} 12. Nc4 {[%clk 0:02:36.9]} 12... Qc7 {[%clk
0:02:00.8]} 13. Ne3 {[%clk 0:02:35.8]} 13... Nf8 {[%clk 0:01:58.4]} 14. f5
{[%clk 0:02:24.3]} 14... b5 {[%clk 0:01:16.5]} 15. fxg6 {[%clk 0:02:20.1]} 15...
fxg6 {[%clk 0:01:13.9]} 16. Ng4 {[%clk 0:02:16.2]} 16... e5 {[%clk 0:01:11.5]}
17. Nh6+ {[%clk 0:02:10.1]} 17... Kh8 {[%clk 0:01:03.9]} 18. Qh4 {[%clk
0:02:10.2]} 18... Ne6 {[%clk 0:01:03.4]} 19. Ng5 {[%clk 0:02:03.7]} 19... Nxg5
{[%clk 0:01:02.4]} 20. Bxg5 {[%clk 0:02:02.9]} 20... Be6 {[%clk 0:01:02.7]} 21.
Bg4 {[%clk 0:01:58.3]} 21... Bxg4 {[%clk 0:00:43.8]} 22. Rf7 {[%clk 0:01:44.9]}
22... Qxf7 {[%clk 0:00:29]} 23. Nxf7+ {[%clk 0:01:43.9]} 23... Kg8 {[%clk
0:00:29.4]} 24. Qxg4 {[%clk 0:01:41]} 24... Kxf7 {[%clk 0:00:29.2]} 25. Qd7+
{[%clk 0:01:40.5]} 25... Ne7 {[%clk 0:00:28.2]} 26. Rf1+ {[%clk 0:01:39]} 1-0

[Event "*** Titled Tuesday Blitz"]
[Site "Chess.com"]
[Date "2020.05.26"]
[Round "8"]
[White "RobPeresian"]
[Black "yamalchess"]
[Result "0-1"]
[WhiteElo "2313"]
[BlackElo "2498"]
[TimeControl "180+1"]
[EndTime "11:38:37 PDT"]
[Termination "yamalchess won by resignation"]

1. Nf3 {[%clk 0:03:00.9]} 1... f5 {[%clk 0:02:59.3]} 2. c4 {[%clk 0:02:48.2]}
2... Nf6 {[%clk 0:02:57.7]} 3. b3 {[%clk 0:02:46]} 3... g6 {[%clk 0:02:56.9]} 4.
Bb2 {[%clk 0:02:45.4]} 4... Bg7 {[%clk 0:02:57.4]} 5. h3 {[%clk 0:02:45.8]} 5...
d6 {[%clk 0:02:57]} 6. e3 {[%clk 0:02:43.2]} 6... e5 {[%clk 0:02:56.1]} 7. d3
{[%clk 0:02:42.2]} 7... Nc6 {[%clk 0:02:54.6]} 8. Be2 {[%clk 0:02:37]} 8... O-O
{[%clk 0:02:53.9]} 9. g4 {[%clk 0:02:36.5]} 9... fxg4 {[%clk 0:02:52.3]} 10.
hxg4 {[%clk 0:02:37.4]} 10... Bxg4 {[%clk 0:02:50.3]} 11. Nbd2 {[%clk
0:02:34.4]} 11... Qe7 {[%clk 0:02:46.6]} 12. Qc2 {[%clk 0:02:25]} 12... e4
{[%clk 0:02:30.4]} 13. dxe4 {[%clk 0:02:12.3]} 13... Nb4 {[%clk 0:01:56.7]} 14.
Qc3 {[%clk 0:02:04.1]} 14... Nh5 {[%clk 0:01:54.5]} 15. Qxb4 {[%clk 0:01:27.8]}
15... Bxb2 {[%clk 0:01:53.4]} 16. Rb1 {[%clk 0:01:28]} 16... c5 {[%clk
0:01:53.5]} 17. Qa4 {[%clk 0:01:15.2]} 17... Bc3 {[%clk 0:01:43.7]} 18. Ng1
{[%clk 0:01:08.2]} 18... Bd7 {[%clk 0:01:10.2]} 19. Qa3 {[%clk 0:01:06.1]} 19...
Qxe4 {[%clk 0:01:07.2]} 20. Bxh5 {[%clk 0:00:59.2]} 20... Qxh1 {[%clk
0:01:02.4]} 0-1

[Event "*** Titled Tuesday Blitz"]
[Site "Chess.com"]
[Date "2020.05.26"]
[Round "8"]
[White "AsselLesbekova"]
[Black "Giraffe_Chess"]
[Result "0-1"]
[WhiteElo "2280"]
[BlackElo "2422"]
[TimeControl "180+1"]
[EndTime "11:38:50 PDT"]
[Termination "Giraffe_Chess won by resignation"]

1. e4 {[%clk 0:03:00.5]} 1... c6 {[%clk 0:02:57.5]} 2. d4 {[%clk 0:03:00.4]}
2... d5 {[%clk 0:02:57.4]} 3. Nd2 {[%clk 0:03:00.7]} 3... dxe4 {[%clk
0:02:56.4]} 4. Nxe4 {[%clk 0:03:01.6]} 4... Nf6 {[%clk 0:02:56.8]} 5. Nxf6+
{[%clk 0:03:01]} 5... exf6 {[%clk 0:02:57.7]} 6. c3 {[%clk 0:03:01.7]} 6... Bd6
{[%clk 0:02:57.8]} 7. Bd3 {[%clk 0:03:02]} 7... O-O {[%clk 0:02:57.7]} 8. Qf3
{[%clk 0:03:02.7]} 8... Re8+ {[%clk 0:02:56.7]} 9. Ne2 {[%clk 0:03:03.2]} 9...
Nd7 {[%clk 0:02:56.6]} 10. Be3 {[%clk 0:03:03.3]} 10... Nf8 {[%clk 0:02:56.2]}
11. Bf4 {[%clk 0:03:02]} 11... Be6 {[%clk 0:02:48.4]} 12. c4 {[%clk 0:02:59.9]}
12... Bb4+ {[%clk 0:02:42.3]} 13. Kf1 {[%clk 0:02:54.8]} 13... Bd6 {[%clk
0:02:38.9]} 14. Be3 {[%clk 0:02:50.8]} 14... Qd7 {[%clk 0:02:32.5]} 15. h3
{[%clk 0:02:37.5]} 15... Rad8 {[%clk 0:02:31.2]} 16. g4 {[%clk 0:02:35.6]} 16...
Bb8 {[%clk 0:02:26.9]} 17. Qg2 {[%clk 0:02:19.4]} 17... b5 {[%clk 0:02:20.3]}
18. b3 {[%clk 0:02:18]} 18... Ng6 {[%clk 0:02:13.6]} 19. Bd2 {[%clk 0:02:10.3]}
19... Nh4 {[%clk 0:02:09.9]} 20. Qe4 {[%clk 0:02:00.9]} 20... g6 {[%clk
0:01:52]} 21. Rg1 {[%clk 0:01:47]} 21... Bxc4 {[%clk 0:01:48.1]} 22. bxc4 {[%clk
0:01:41.8]} 22... Rxe4 {[%clk 0:01:47]} 23. Bxe4 {[%clk 0:01:42.7]} 23... bxc4
{[%clk 0:01:42.8]} 24. f4 {[%clk 0:01:41.2]} 24... Re8 {[%clk 0:01:33.5]} 25.
Bh1 {[%clk 0:01:35.6]} 25... f5 {[%clk 0:01:21]} 26. Be1 {[%clk 0:01:26.3]}
26... Qe7 {[%clk 0:01:17.5]} 27. Nc3 {[%clk 0:01:21.7]} 27... Bxf4 {[%clk
0:01:12.3]} 28. Bxh4 {[%clk 0:01:20.1]} 28... Qxh4 {[%clk 0:01:10.8]} 29. Bxc6
{[%clk 0:01:19.9]} 29... Qxh3+ {[%clk 0:00:59.4]} 0-1

[Event "*** Titled Tuesday Blitz"]
[Site "Chess.com"]
[Date "2020.05.26"]
[Round "8"]
[White "MF1966Idrisov"]
[Black "ADODOVE"]
[Result "1-0"]
[WhiteElo "2322"]
[BlackElo "1997"]
[TimeControl "180+1"]
[EndTime "11:38:54 PDT"]
[Termination "MF1966Idrisov won by resignation"]

1. Nf3 {[%clk 0:03:00.9]} 1... Nf6 {[%clk 0:02:59.9]} 2. b3 {[%clk 0:03:01]}
2... d6 {[%clk 0:02:57.1]} 3. d4 {[%clk 0:02:58.9]} 3... Bg4 {[%clk 0:02:54.5]}
4. Bb2 {[%clk 0:02:58.8]} 4... Nbd7 {[%clk 0:02:54.2]} 5. e3 {[%clk 0:02:58.7]}
5... e5 {[%clk 0:02:50.1]} 6. Be2 {[%clk 0:02:53.3]} 6... e4 {[%clk 0:02:49.5]}
7. Nfd2 {[%clk 0:02:53.2]} 7... h5 {[%clk 0:02:46.7]} 8. c4 {[%clk 0:02:51.9]}
8... g5 {[%clk 0:02:35.1]} 9. Nc3 {[%clk 0:02:51.3]} 9... Bh6 {[%clk 0:02:27.6]}
10. Ndxe4 {[%clk 0:02:50.2]} 10... Bxe2 {[%clk 0:02:24.9]} 11. Qxe2 {[%clk
0:02:48.5]} 11... Qe7 {[%clk 0:02:19.3]} 12. Nxf6+ {[%clk 0:02:29.6]} 12... Nxf6
{[%clk 0:02:17.9]} 13. O-O-O {[%clk 0:02:28.1]} 13... g4 {[%clk 0:02:18]} 14.
Kb1 {[%clk 0:02:26.1]} 14... a5 {[%clk 0:02:14.9]} 15. Rhe1 {[%clk 0:02:21.6]}
15... a4 {[%clk 0:02:08.7]} 16. Nxa4 {[%clk 0:02:20.7]} 16... O-O {[%clk
0:02:02.5]} 17. e4 {[%clk 0:02:19.8]} 17... Nd7 {[%clk 0:01:57.6]} 18. Nc3
{[%clk 0:02:18.7]} 18... b5 {[%clk 0:01:55.4]} 19. Nd5 {[%clk 0:02:17.4]} 19...
Qd8 {[%clk 0:01:53.4]} 20. cxb5 {[%clk 0:02:17.2]} 20... c6 {[%clk 0:01:47.8]}
21. bxc6 {[%clk 0:02:12.4]} 21... Qa5 {[%clk 0:01:47.6]} 22. Bc3 {[%clk
0:02:08.9]} 22... Qa3 {[%clk 0:01:42.2]} 23. cxd7 {[%clk 0:02:08.6]} 23... Rfb8
{[%clk 0:01:40]} 24. Qb2 {[%clk 0:02:01.9]} 24... Qa7 {[%clk 0:01:33.1]} 25. f3
{[%clk 0:01:56.2]} 25... Kf8 {[%clk 0:01:27.9]} 26. fxg4 {[%clk 0:01:53.5]}
26... hxg4 {[%clk 0:01:25.4]} 27. Rf1 {[%clk 0:01:51.8]} 27... Qxd7 {[%clk
0:01:22.7]} 28. Rf5 {[%clk 0:01:47.2]} 28... Qe6 {[%clk 0:01:17.9]} 29. Qc2
{[%clk 0:01:40.7]} 29... Rb7 {[%clk 0:01:08.4]} 30. Rf6 {[%clk 0:01:37.2]} 30...
Rxa2 {[%clk 0:00:54.3]} 31. Kxa2 {[%clk 0:01:35.6]} 31... Ra7+ {[%clk
0:00:51.4]} 32. Kb2 {[%clk 0:01:33.9]} 32... Qc8 {[%clk 0:00:48.8]} 33. Ra1
{[%clk 0:01:32.2]} 33... Qa6 {[%clk 0:00:49.7]} 34. Rxa6 {[%clk 0:01:31.2]}
34... Rxa6 {[%clk 0:00:48.4]} 35. Rxh6 {[%clk 0:01:31.2]} 1-0